bitfinex-derivatives/quotes_BTCF0:USTF0_20251230
["timestamp","ask_amount","ask_price","bid_price","bid_amount"]
[1767093007638,0.02542032,88039.0,88024.0,0.057]
[1767093007833,0.16498611,88040.0,88024.0,0.057]
[1767093008042,0.02542032,88039.0,88025.0,0.0113749]
[1767093008240,0.15361311,88040.0,88025.0,0.0113749]
[1767093008541,0.02542021,88039.0,88025.0,0.0113749]
[1767093008744,0.15361311,88040.0,88025.0,0.0113749]
[1767093010238,0.0113726,88043.0,88025.0,0.0113749]
[1767093010443,0.02542251,88042.0,88028.0,0.0113745]
[1767093010645,0.02542251,88041.0,88028.0,0.0113745]
[1767093010840,0.09668,88045.0,88024.0,0.057]
[1767093011047,0.09668,88062.0,88040.0,0.0113729]
[1767093011235,0.09668,88062.0,88027.0,0.0113746]
[1767093011236,0.21057311,88060.0,88042.0,0.0113726]
[1767093011841,0.15368,88059.0,88042.0,0.0113726]
[1767093012045,0.057,88058.0,88042.0,0.01154296]
[1767093015153,0.057,88058.0,88042.0,0.00017036]
[1767093016751,0.16498351,88060.0,88042.0,0.00017036]
[1767093016949,0.057,88058.0,88042.0,0.00017036]
[1767093017253,0.057,88058.0,88043.0,0.0113725]
[1767093017645,0.057,88058.0,88045.0,0.0113722]
[1767093018354,0.057,88058.0,88042.0,0.01154296]
[1767093019551,0.0113708,88057.0,88042.0,0.00017036]
[1767093020556,0.0113706,88059.0,88043.0,0.0113725]
[1767093020757,0.21057311,88060.0,88043.0,0.0113725]
[1767093021456,0.0683304,88060.0,88042.0,0.00017036]
[1767093021657,0.22194351,88060.0,88042.0,0.00017036]
[1767093023060,0.22194351,88060.0,88042.0,0.01154306]
[1767093023247,0.0113707,88058.0,88042.0,0.00017036]
[1767093026053,0.0113711,88055.0,88042.0,0.00017036]
[1767093026263,0.0113716,88051.0,88037.0,0.05696]
[1767093026450,0.15361311,88047.0,88034.0,0.09668]
[1767093026658,0.0113719,88049.0,88034.0,0.09668]
[1767093028761,0.15378347,88050.0,88034.0,0.09668]
[1767093029263,0.16515527,88050.0,88034.0,0.09668]
[1767093030660,0.0113721,88047.0,88034.0,0.09668]
[1767093030858,0.0113726,88043.0,88030.0,0.057]
[1767093031056,0.15361311,88040.0,88028.0,0.057]
[1767093031257,0.15361311,88040.0,88031.0,0.01135]
[1767093031556,0.15361311,88040.0,88028.0,0.057]
[1767093032162,0.057,88045.0,88028.0,0.057]
[1767093032363,0.15361311,88040.0,88028.0,0.057]
[1767093033365,0.057,88045.0,88028.0,0.057]
[1767093033569,0.15361311,88040.0,88028.0,0.057]
[1767093034863,0.0683724,88045.0,88028.0,0.0683744]
[1767093035060,0.00017036,88050.0,88028.0,0.0683744]
[1767093035061,0.00036823,88044.0,88030.0,0.15361311]
[1767093035265,0.05696,88049.0,88030.0,0.15361311]
[1767093036166,0.05696,88049.0,88034.0,0.0113737]
[1767093036367,0.0683318,88049.0,88034.0,0.0113737]
[1767093039466,0.0113721,88047.0,88028.0,0.057]
[1767093039870,0.05696,88049.0,88033.0,0.0113739]
[1767093044673,0.05696,88049.0,88035.0,0.0113736]
[1767093046465,0.05696,88049.0,88037.0,0.0113733]
[1767093046665,0.05696,88049.0,88039.0,0.011373]
[1767093047270,0.00017036,88050.0,88041.0,0.0113728]
[1767093047869,0.1536,88054.0,88041.0,0.0113728]
[1767093048168,0.02521778,88053.0,88041.0,0.0113728]
[1767093048369,0.02521778,88052.0,88041.0,0.0113728]
[1767093048569,0.02521778,88051.0,88041.0,0.0113728]
[1767093048774,0.1536,88054.0,88041.0,0.0113728]
[1767093049075,0.02521792,88053.0,88041.0,0.0113728]
[1767093049272,0.02521792,88052.0,88041.0,0.0113728]
[1767093049573,0.1649713,88054.0,88040.0,0.0113729]
[1767093049774,0.02521804,88053.0,88037.0,0.05696]
[1767093049973,0.05713036,88056.0,88041.0,0.0113727]
[1767093050376,0.0113711,88055.0,88041.0,0.0113727]
[1767093050875,0.0113713,88053.0,88038.0,0.0113732]
[1767093051971,0.0113718,88050.0,88037.0,0.05696]
[1767093052176,0.15361311,88050.0,88037.0,0.05696]
[1767093053076,0.0113718,88049.0,88037.0,0.05696]
[1767093053675,0.15361311,88050.0,88037.0,0.05696]
[1767093057878,0.0113715,88052.0,88037.0,0.05696]
[1767093060385,0.05713036,88056.0,88037.0,0.05696]
[1767093060788,0.15361311,88050.0,88037.0,0.11176519]
[1767093061777,0.0113717,88050.0,88037.0,0.11176519]
[1767093061983,0.16498481,88050.0,88037.0,0.11176519]
[1767093062179,0.16498481,88050.0,88037.0,0.05480519]
[1767093062371,0.16498481,88050.0,88038.0,0.05696]
[1767093064278,0.16498481,88050.0,88037.0,0.05480519]
[1767093064480,0.0113735,88036.0,88005.0,0.08187344]
[1767093064678,0.0113739,88033.0,88018.0,0.1536]
[1767093066384,0.01154416,88034.0,88018.0,0.1536]
[1767093070678,0.00017036,88034.0,88018.0,0.05696]
[1767093072482,0.0113742,88031.0,88018.0,0.05696]
[1767093074587,0.01154416,88034.0,88018.0,0.05696]
[1767093080390,0.01154416,88034.0,88018.0,0.0683357]
[1767093085296,0.08177841,88065.0,88026.0,0.0113747]
[1767093085494,0.0113726,88044.0,88026.0,0.0113747]
[1767093085793,0.17869586,88043.0,88026.0,0.0113747]
[1767093085996,0.02505586,88042.0,88026.0,0.0113747]
[1767093086188,0.02505586,88041.0,88026.0,0.0113747]
[1767093086496,0.02505586,88040.0,88026.0,0.0113747]
[1767093086691,0.02505586,88039.0,88025.0,0.05696]
[1767093088996,0.011373,88040.0,88025.0,0.05696]
[1767093089593,0.00017036,88042.0,88025.0,0.0683349]
[1767093089794,0.15364,88046.0,88025.0,0.0683349]
[1767093089795,0.0113723,88046.0,88028.0,0.0113745]
[1767093089996,0.0113723,88046.0,88030.0,0.0113742]
[1767093092788,0.0113723,88046.0,88025.0,0.05696]
[1767093092992,0.15364,88048.0,88028.0,0.0113745]
[1767093093801,0.0113725,88044.0,88028.0,0.0113745]
[1767093094101,0.0113725,88044.0,88025.0,0.0683348]
[1767093094300,0.011373,88040.0,88025.0,0.05696]
[1767093097800,0.0113727,88043.0,88025.0,0.05696]
[1767093098402,0.0113723,88046.0,88030.0,0.0113742]
[1767093098604,0.0113725,88044.0,88026.0,0.0113746]
[1767093098897,0.0113718,88050.0,88025.0,0.05696]
[1767093099205,0.0113714,88053.0,88033.0,0.0113738]
[1767093099407,0.0113714,88053.0,88034.0,0.05696]
[1767093099596,0.0113709,88056.0,88037.0,0.0113733]
[1767093100000,0.0113709,88056.0,88039.0,0.011373]
[1767093100703,0.0113706,88059.0,88041.0,0.0113728]
[1767093100908,0.0113708,88057.0,88041.0,0.0113728]
[1767093101807,0.02504682,88056.0,88041.0,0.0113728]
[1767093102009,0.02504682,88055.0,88041.0,0.0113728]
[1767093102209,0.02504682,88054.0,88041.0,0.0113728]
[1767093102408,0.02504682,88053.0,88041.0,0.0113728]
[1767093102707,0.02504682,88052.0,88038.0,0.0113732]
[1767093102907,0.02504682,88051.0,88038.0,0.0113732]
[1767093103208,0.02504682,88050.0,88038.0,0.0113732]
[1767093103407,0.0113711,88055.0,88038.0,0.0113732]
[1767093103707,0.02503949,88054.0,88038.0,0.0113732]
[1767093103909,0.02503949,88053.0,88038.0,0.0113732]
[1767093104207,0.02503949,88052.0,88038.0,0.0113732]
[1767093104511,0.02503949,88051.0,88038.0,0.0113732]
[1767093104804,0.02503949,88050.0,88030.0,0.05696]
[1767093105008,0.02503949,88049.0,88036.0,0.0113734]
[1767093105215,0.05696,88058.0,88033.0,0.0113739]
[1767093105409,0.02503776,88057.0,88035.0,0.0113736]
[1767093105605,0.02503776,88056.0,88035.0,0.0113736]
[1767093105807,0.02503776,88055.0,88035.0,0.0113736]
[1767093106009,0.0113716,88051.0,88035.0,0.0113736]
[1767093106311,0.02503776,88050.0,88035.0,0.0113736]
[1767093106611,0.0113716,88051.0,88035.0,0.0113736]
[1767093106813,0.02503464,88050.0,88035.0,0.0113736]
[1767093107013,0.0113716,88051.0,88035.0,0.0113736]
[1767093107209,0.02503464,88050.0,88035.0,0.0113736]
[1767093107511,0.0113716,88051.0,88035.0,0.0113736]
[1767093107711,0.0250337,88050.0,88035.0,0.0113736]
[1767093108006,0.0113716,88051.0,88035.0,0.0113736]
[1767093108215,0.0250337,88050.0,88035.0,0.0113736]
[1767093108412,0.0113716,88051.0,88035.0,0.0113736]
[1767093108709,0.02503327,88050.0,88035.0,0.0113736]
[1767093108910,0.02503326,88049.0,88035.0,0.0113736]
[1767093109113,0.0113716,88051.0,88035.0,0.0113736]
[1767093109413,0.02503326,88050.0,88035.0,0.0113736]
[1767093109617,0.02503326,88049.0,88035.0,0.0113736]
[1767093109815,0.0113716,88051.0,88035.0,0.0113736]
[1767093110006,0.02503321,88050.0,88035.0,0.0113736]
[1767093110207,0.02503321,88049.0,88035.0,0.0113736]
[1767093110403,0.0113716,88051.0,88035.0,0.0113736]
[1767093110609,0.02503344,88050.0,88035.0,0.0113736]
[1767093110916,0.02503344,88049.0,88035.0,0.0113736]
[1767093111117,0.0113713,88054.0,88037.0,0.0113732]
[1767093111316,0.02503344,88053.0,88042.0,0.0113727]
[1767093111515,0.05696,88058.0,88042.0,0.0113727]
[1767093112120,0.0683308,88058.0,88039.0,0.1536]
[1767093112412,0.0113712,88054.0,88038.0,0.05696]
[1767093112618,0.0113712,88054.0,88038.0,0.1536]
[1767093112822,0.0113715,88052.0,88038.0,0.1536]
[1767093123432,0.02493916,88051.0,88038.0,0.1536]
[1767093123628,0.02493916,88050.0,88038.0,0.1536]
[1767093123925,0.0113715,88052.0,88038.0,0.1536]
[1767093124127,0.02493916,88051.0,88038.0,0.1536]
[1767093124320,0.0113715,88052.0,88038.0,0.1536]
[1767093124321,0.02493916,88050.0,88038.0,0.1536]
[1767093124520,0.0113715,88052.0,88038.0,0.1536]
[1767093124820,0.02494192,88051.0,88038.0,0.1536]
[1767093125019,0.0113715,88052.0,88038.0,0.1536]
[1767093125020,0.02494192,88050.0,88038.0,0.1536]
[1767093125224,0.0113715,88052.0,88038.0,0.1536]
[1767093125413,0.02494236,88051.0,88038.0,0.1536]
[1767093125614,0.02494236,88050.0,88038.0,0.1536]
[1767093125827,0.0113715,88052.0,88038.0,0.1536]
[1767093126027,0.02494537,88051.0,88038.0,0.1536]
[1767093126226,0.02494537,88050.0,88038.0,0.1536]
[1767093126423,0.0113715,88052.0,88038.0,0.1536]
[1767093126630,0.02494971,88051.0,88038.0,0.1536]
[1767093126829,0.0113715,88052.0,88038.0,0.1536]
[1767093127430,0.15355086,88050.0,88038.0,0.1536]
[1767093131732,0.16492256,88050.0,88038.0,0.1536]
[1767093134838,0.15355086,88050.0,88038.0,0.1536]
[1767093137137,0.05696,88054.0,88039.0,0.0113731]
[1767093137530,0.05696,88054.0,88041.0,0.0113728]
[1767093137731,0.05696,88056.0,88043.0,0.0113725]
[1767093137937,0.01277,88068.0,88044.0,0.05696]
[1767093138241,0.0113702,88062.0,88044.0,0.05696]
[1767093138450,0.15355086,88060.0,88044.0,0.05696]
[1767093138742,0.15355086,88060.0,88044.0,0.0683324]
[1767093138743,0.02460099,88059.0,88044.0,0.0683324]
[1767093138930,0.15355086,88060.0,88044.0,0.0683324]
[1767093138931,0.02460099,88058.0,88044.0,0.0683324]
[1767093139129,0.02460099,88057.0,88044.0,0.0683324]
[1767093139332,0.02460099,88056.0,88044.0,0.0683324]
[1767093139529,0.15355086,88060.0,88044.0,0.0683324]
[1767093139736,0.02459608,88059.0,88044.0,0.0683324]
[1767093139937,0.02459608,88058.0,88044.0,0.0683324]
[1767093140137,0.02459608,88057.0,88044.0,0.0683324]
[1767093140343,0.15355086,88060.0,88044.0,0.0683324]
[1767093140543,0.02459233,88059.0,88044.0,0.0683324]
[1767093140742,0.02459233,88058.0,88044.0,0.0683324]
[1767093140945,0.02459233,88057.0,88044.0,0.0683324]
[1767093141241,0.21051086,88060.0,88044.0,0.0683324]
[1767093141444,0.02458963,88059.0,88044.0,0.0683324]
[1767093141635,0.02458963,88058.0,88044.0,0.0683324]
[1767093141843,0.02458963,88057.0,88044.0,0.0683324]
[1767093142035,0.21051086,88060.0,88044.0,0.0683324]
[1767093142236,0.02458696,88059.0,88044.0,0.0683324]
[1767093142543,0.02458696,88058.0,88044.0,0.0683324]
[1767093142743,0.02458696,88057.0,88044.0,0.0683324]
[1767093142945,0.05696,88060.0,88044.0,0.0683324]
[1767093143243,0.02458674,88059.0,88044.0,0.0683324]
[1767093143435,0.02458674,88058.0,88044.0,0.0683324]
[1767093143642,0.02458674,88057.0,88044.0,0.0683324]
[1767093143941,0.05696,88060.0,88044.0,0.0683324]
[1767093144141,0.02458455,88059.0,88044.0,0.0683324]
[1767093144347,0.02458455,88058.0,88044.0,0.0683324]
[1767093144641,0.05696,88060.0,88044.0,0.0683324]
[1767093144842,0.02458278,88059.0,88044.0,0.0683324]
[1767093145144,0.02458278,88058.0,88044.0,0.0683324]
[1767093145342,0.05696,88060.0,88044.0,0.0683324]
[1767093145544,0.02458133,88059.0,88044.0,0.0683324]
[1767093145740,0.02458133,88058.0,88044.0,0.0683324]
[1767093145948,0.0113702,88062.0,88044.0,0.0683324]
[1767093146137,0.08154135,88061.0,88044.0,0.0683324]
[1767093146345,0.08154135,88060.0,88044.0,0.0683324]
[1767093146644,0.02458135,88059.0,88044.0,0.0683324]
[1767093146844,0.02458135,88058.0,88044.0,0.0683324]
[1767093147045,0.05696,88060.0,88044.0,0.0683324]
[1767093147341,0.02457964,88059.0,88044.0,0.0683324]
[1767093147645,0.02457964,88058.0,88044.0,0.0683324]
[1767093147942,0.05696,88060.0,88044.0,0.0683324]
[1767093148244,0.02457942,88059.0,88044.0,0.0683324]
[1767093148445,0.02457942,88058.0,88044.0,0.0683324]
[1767093148644,0.21051086,88060.0,88044.0,0.0683324]
[1767093148845,0.02457876,88059.0,88044.0,0.0683324]
[1767093149145,0.21051086,88060.0,88044.0,0.0683324]
[1767093149146,0.22188136,88060.0,88044.0,0.0683324]
[1767093149335,0.02457844,88059.0,88044.0,0.0683324]
[1767093149540,0.22188136,88060.0,88044.0,0.0683324]
[1767093149745,0.02457829,88059.0,88044.0,0.0683324]
[1767093150044,0.22188136,88060.0,88044.0,0.0683324]
[1767093150248,0.02457809,88059.0,88044.0,0.0683324]
[1767093150436,0.22188136,88060.0,88044.0,0.0683324]
[1767093150636,0.02457809,88059.0,88044.0,0.0683324]
[1767093150833,0.22188136,88060.0,88044.0,0.0683324]
[1767093151136,0.02457809,88059.0,88044.0,0.0683324]
[1767093151338,0.22188136,88060.0,88044.0,0.0683324]
[1767093151536,0.02457788,88059.0,88044.0,0.0683324]
[1767093151736,0.22188136,88060.0,88044.0,0.0683324]
[1767093151945,0.02457788,88059.0,88044.0,0.0683324]
[1767093152145,0.22188136,88060.0,88044.0,0.0683324]
[1767093152346,0.02457783,88059.0,88044.0,0.0683324]
[1767093152546,0.22188136,88060.0,88044.0,0.0683324]
[1767093152748,0.02457783,88059.0,88044.0,0.0683324]
[1767093152939,0.22188136,88060.0,88044.0,0.0683324]
[1767093153235,0.02457783,88059.0,88044.0,0.0683324]
[1767093153441,0.22188136,88060.0,88044.0,0.0683324]
[1767093153636,0.02457794,88059.0,88044.0,0.0683324]
[1767093153842,0.22188136,88060.0,88044.0,0.0683324]
[1767093154036,0.02457794,88059.0,88044.0,0.0683324]
[1767093154339,0.22188136,88060.0,88044.0,0.0683324]
[1767093154536,0.02457821,88059.0,88044.0,0.0683324]
[1767093154741,0.22188136,88060.0,88044.0,0.0683324]
[1767093154938,0.02457821,88059.0,88044.0,0.0683324]
[1767093155150,0.22188136,88060.0,88044.0,0.0683324]
[1767093155352,0.02457864,88059.0,88044.0,0.0683324]
[1767093155546,0.22188136,88060.0,88044.0,0.0683324]
[1767093155751,0.02457864,88059.0,88044.0,0.0683324]
[1767093155952,0.22188136,88060.0,88044.0,0.0683324]
[1767093156252,0.02457863,88059.0,88044.0,0.0683324]
[1767093156455,0.22188136,88060.0,88044.0,0.0683324]
[1767093156647,0.02457921,88059.0,88044.0,0.0683324]
[1767093156848,0.22188136,88060.0,88044.0,0.0683324]
[1767093157048,0.02457921,88059.0,88044.0,0.0683324]
[1767093157248,0.22188136,88060.0,88044.0,0.0683324]
[1767093157451,0.02457991,88059.0,88044.0,0.0683324]
[1767093157650,0.22188136,88060.0,88044.0,0.0683324]
[1767093157853,0.02457991,88059.0,88044.0,0.0683324]
[1767093158157,0.22188136,88060.0,88044.0,0.0683324]
[1767093158352,0.0245808,88059.0,88044.0,0.0683324]
[1767093158552,0.22188136,88060.0,88044.0,0.0683324]
[1767093158754,0.0245808,88059.0,88044.0,0.0683324]
[1767093158959,0.22188136,88060.0,88044.0,0.0683324]
[1767093159257,0.0245808,88059.0,88044.0,0.0683324]
[1767093159456,0.0245808,88058.0,88044.0,0.0683324]
[1767093159656,0.22188136,88060.0,88044.0,0.0683324]
[1767093159859,0.02458189,88059.0,88044.0,0.0683324]
[1767093160156,0.02458189,88058.0,88044.0,0.0683324]
[1767093160358,0.22188136,88060.0,88044.0,0.0683324]
[1767093160556,0.02458309,88059.0,88044.0,0.0683324]
[1767093160753,0.02458309,88058.0,88044.0,0.0683324]
[1767093161056,0.22188136,88060.0,88044.0,0.0683324]
[1767093161257,0.02470429,88059.0,88046.0,0.0113722]
[1767093161457,0.02470429,88058.0,88046.0,0.0113722]
[1767093161658,0.22188136,88060.0,88046.0,0.0113722]
[1767093161860,0.02470429,88059.0,88046.0,0.0113722]
[1767093162049,0.02470429,88058.0,88046.0,0.0113722]
[1767093162250,0.22188136,88060.0,88046.0,0.0113722]
[1767093162551,0.02470618,88059.0,88046.0,0.0113722]
[1767093162860,0.02470618,88058.0,88046.0,0.0113722]
[1767093163051,0.22188136,88060.0,88046.0,0.0113722]
[1767093163252,0.02470842,88059.0,88046.0,0.0113722]
[1767093163552,0.02470842,88058.0,88046.0,0.0113722]
[1767093163857,0.22188136,88060.0,88046.0,0.0113722]
[1767093164057,0.02470842,88059.0,88046.0,0.0113722]
[1767093164257,0.22188136,88060.0,88046.0,0.0113722]
[1767093164258,0.02470842,88058.0,88046.0,0.0113722]
[1767093164450,0.02470842,88057.0,88046.0,0.0113722]
[1767093164650,0.05696,88060.0,88048.0,0.0113719]
[1767093164851,0.02471118,88059.0,88048.0,0.0113719]
[1767093165051,0.02471118,88058.0,88048.0,0.0113719]
[1767093165260,0.02471118,88057.0,88050.0,0.0113716]
[1767093165462,0.05696,88060.0,88052.0,0.0113714]
[1767093165659,0.02471435,88059.0,88052.0,0.0113714]
[1767093165854,0.02471435,88058.0,88052.0,0.0113714]
[1767093166060,0.05692,88060.0,88054.0,0.0113711]
[1767093167263,0.0113693,88069.0,88056.0,0.0113709]
[1767093167465,0.05692,88066.0,88056.0,0.0113709]
[1767093173984,0.05692,88066.0,88058.0,0.0113706]
[1767093174175,0.05692,88066.0,88060.0,0.0113704]
[1767093174682,0.05692,88071.0,88052.0,0.0113713]
[1767093174881,0.15355086,88070.0,88052.0,0.0113713]
[1767093175079,0.0113677,88081.0,88058.0,0.15355086]
[1767093175278,0.21047086,88080.0,88067.0,0.0113694]
[1767093176785,0.05692,88079.0,88067.0,0.0113694]
[1767093177086,0.05692,88084.0,88069.0,0.0113691]
[1767093178087,0.02456957,88083.0,88069.0,0.0113691]
[1767093178288,0.02456957,88082.0,88069.0,0.0113691]
[1767093178488,0.02456957,88081.0,88069.0,0.0113691]
[1767093178691,0.02456957,88080.0,88069.0,0.0113691]
[1767093178885,0.02456957,88079.0,88069.0,0.0113691]
[1767093179085,0.05692,88084.0,88069.0,0.0113691]
[1767093179284,0.02455907,88083.0,88069.0,0.0113691]
[1767093179491,0.02455907,88082.0,88069.0,0.0113691]
[1767093179788,0.02455907,88081.0,88071.0,0.0113689]
[1767093179990,0.05692,88084.0,88071.0,0.0113689]
[1767093180189,0.02455906,88083.0,88071.0,0.0113689]
[1767093180389,0.02455906,88082.0,88071.0,0.0113689]
[1767093180591,0.02455906,88081.0,88071.0,0.0113689]
[1767093180787,0.05692,88084.0,88071.0,0.0113689]
[1767093180988,0.02455863,88083.0,88071.0,0.0113689]
[1767093181190,0.02455863,88082.0,88071.0,0.0113689]
[1767093181385,0.02455863,88081.0,88071.0,0.0113689]
[1767093181589,0.05692,88084.0,88071.0,0.0113689]
[1767093181895,0.02455468,88083.0,88071.0,0.0113689]
[1767093182096,0.02455468,88082.0,88071.0,0.0113689]
[1767093182284,0.05692,88084.0,88071.0,0.0113689]
[1767093182487,0.02455158,88083.0,88071.0,0.0113689]
[1767093182794,0.02455158,88082.0,88071.0,0.0113689]
[1767093182996,0.05692,88084.0,88068.0,0.0113693]
[1767093183298,0.02455132,88083.0,88061.0,0.00017036]
[1767093183599,0.02455132,88082.0,88061.0,0.00017036]
[1767093183796,0.0113674,88083.0,88067.0,0.0113694]
[1767093183989,0.02454919,88082.0,88067.0,0.0113694]
[1767093184188,0.0113674,88083.0,88067.0,0.0113694]
[1767093184389,0.02454739,88082.0,88067.0,0.0113694]
[1767093184598,0.0113674,88083.0,88067.0,0.0113694]
[1767093184788,0.02454739,88082.0,88067.0,0.0113694]
[1767093184990,0.0113674,88083.0,88067.0,0.0113694]
[1767093185289,0.0245474,88082.0,88067.0,0.0113694]
[1767093185598,0.0113674,88083.0,88067.0,0.0113694]
[1767093185789,0.02454614,88082.0,88067.0,0.0113694]
[1767093185989,0.0113674,88083.0,88067.0,0.0113694]
[1767093186188,0.02454631,88082.0,88067.0,0.0113694]
[1767093186394,0.0113674,88083.0,88067.0,0.0113694]
[1767093186592,0.02454539,88082.0,88067.0,0.0113694]
[1767093186794,0.0113674,88083.0,88067.0,0.0113694]
[1767093187092,0.02454539,88082.0,88067.0,0.0113694]
[1767093187293,0.0113674,88083.0,88067.0,0.0113694]
[1767093187592,0.02454518,88082.0,88067.0,0.0113694]
[1767093187795,0.0113674,88083.0,88067.0,0.0113694]
[1767093187992,0.02454518,88082.0,88067.0,0.0113694]
[1767093188196,0.0113674,88083.0,88067.0,0.0113694]
[1767093188498,0.02454545,88082.0,88067.0,0.0113694]
[1767093188797,0.0113674,88083.0,88067.0,0.0113694]
[1767093188992,0.02454545,88082.0,88067.0,0.0113694]
[1767093189194,0.0113674,88083.0,88067.0,0.0113694]
[1767093192300,0.02450823,88082.0,88067.0,0.0113694]
[1767093192499,0.0113674,88083.0,88067.0,0.0113694]
[1767093192700,0.02450851,88082.0,88067.0,0.0113694]
[1767093192999,0.0113674,88083.0,88067.0,0.0113694]
[1767093193195,0.02451117,88082.0,88067.0,0.0113694]
[1767093193396,0.0113674,88083.0,88067.0,0.0113694]
[1767093193598,0.02451154,88082.0,88067.0,0.0113694]
[1767093193796,0.0113674,88083.0,88067.0,0.0113694]
[1767093193997,0.02451154,88082.0,88067.0,0.0113694]
[1767093194202,0.0113674,88083.0,88067.0,0.0113694]
[1767093194403,0.02451489,88082.0,88067.0,0.0113694]
[1767093194597,0.0113674,88083.0,88067.0,0.0113694]
[1767093194799,0.02451533,88082.0,88061.0,0.00017036]
[1767093195001,0.0113674,88083.0,88061.0,0.00017036]
[1767093195201,0.02451955,88082.0,88061.0,0.00017036]
[1767093195396,0.02451955,88081.0,88061.0,0.00017036]
[1767093195702,0.0113674,88083.0,88061.0,0.00017036]
[1767093195895,0.02452,88082.0,88061.0,0.00017036]
[1767093196097,0.02452,88081.0,88061.0,0.00017036]
[1767093196301,0.0113674,88083.0,88068.0,0.0113693]
[1767093196504,0.02452494,88082.0,88068.0,0.0113693]
[1767093196800,0.02452494,88081.0,88068.0,0.0113693]
[1767093197001,0.0113674,88083.0,88068.0,0.0113693]
[1767093197201,0.02452494,88082.0,88068.0,0.0113693]
[1767093197402,0.02452494,88081.0,88068.0,0.0113693]
[1767093197605,0.02452494,88080.0,88068.0,0.0113693]
[1767093197790,0.0113674,88083.0,88068.0,0.0113693]
[1767093197993,0.02453018,88082.0,88068.0,0.0113693]
[1767093198294,0.02453018,88081.0,88068.0,0.0113693]
[1767093198493,0.02453018,88080.0,88068.0,0.0113693]
[1767093198795,0.0113674,88083.0,88068.0,0.0113693]
[1767093198995,0.02453287,88082.0,88068.0,0.0113693]
[1767093199191,0.02453287,88081.0,88068.0,0.0113693]
[1767093199396,0.02453287,88080.0,88068.0,0.0113693]
[1767093199592,0.0113674,88083.0,88068.0,0.0113693]
[1767093199896,0.02453629,88082.0,88068.0,0.0113693]
[1767093200096,0.02453629,88081.0,88068.0,0.0113693]
[1767093200299,0.02453629,88080.0,88068.0,0.0113693]
[1767093200504,0.0113674,88083.0,88068.0,0.0113693]
[1767093200505,0.02453629,88079.0,88068.0,0.0113693]
[1767093200702,0.0113674,88083.0,88068.0,0.0113693]
[1767093200899,0.02453923,88082.0,88068.0,0.0113693]
[1767093201100,0.02453923,88081.0,88068.0,0.0113693]
[1767093201297,0.02453923,88080.0,88068.0,0.0113693]
[1767093201802,0.00227047,88088.0,88068.0,0.0113693]
[1767093201803,0.02453923,88079.0,88068.0,0.0113693]
[1767093202002,0.0113675,88082.0,88068.0,0.0113693]
[1767093202303,0.02454725,88081.0,88068.0,0.0113693]
[1767093202506,0.02454725,88080.0,88070.0,0.0113691]
[1767093202706,0.02454725,88079.0,88070.0,0.0113691]
[1767093202895,0.0113674,88083.0,88070.0,0.0113691]
[1767093203096,0.02454766,88082.0,88070.0,0.0113691]
[1767093203296,0.02454766,88081.0,88070.0,0.0113691]
[1767093203592,0.02454766,88080.0,88070.0,0.0113691]
[1767093203796,0.02454766,88079.0,88070.0,0.0113691]
[1767093204004,0.02454766,88078.0,88070.0,0.0113691]
[1767093204203,0.02454766,88077.0,88070.0,0.0113691]
[1767093204502,0.0113674,88083.0,88070.0,0.0113691]
[1767093204703,0.02456311,88082.0,88070.0,0.0113691]
[1767093204903,0.02456311,88081.0,88070.0,0.0113691]
[1767093205105,0.02456311,88080.0,88070.0,0.0113691]
[1767093205302,0.02456311,88079.0,88070.0,0.0113691]
[1767093205503,0.02456311,88078.0,88070.0,0.0113691]
[1767093205696,0.02456311,88077.0,88070.0,0.0113691]
[1767093205896,0.0113674,88083.0,88070.0,0.0113691]
[1767093206104,0.02456899,88082.0,88070.0,0.0113691]
[1767093206303,0.02456899,88081.0,88070.0,0.0113691]
[1767093206507,0.02456899,88080.0,88070.0,0.0113691]
[1767093206701,0.02456899,88079.0,88070.0,0.0113691]
[1767093207003,0.02456899,88078.0,88070.0,0.0113691]
[1767093207206,0.02456899,88077.0,88070.0,0.0113691]
[1767093207504,0.0113674,88083.0,88070.0,0.0113691]
[1767093207705,0.02457255,88082.0,88070.0,0.0113691]
[1767093207907,0.03594025,88081.0,88067.0,0.0113694]
[1767093208207,0.02457255,88080.0,88067.0,0.0113694]
[1767093208406,0.02457255,88079.0,88067.0,0.0113694]
[1767093208608,0.02457255,88079.0,88061.0,0.00017036]
[1767093208609,0.0113685,88075.0,88061.0,0.00017036]
[1767093208808,0.0113685,88075.0,88062.0,0.0113701]
[1767093209210,0.02457388,88074.0,88062.0,0.0113701]
[1767093209402,0.0113685,88075.0,88062.0,0.0113701]
[1767093209702,0.02457257,88074.0,88062.0,0.0113701]
[1767093209906,0.0113682,88078.0,88062.0,0.0113701]
[1767093210105,0.02457258,88077.0,88062.0,0.0113701]
[1767093210304,0.02457258,88076.0,88062.0,0.0113701]
[1767093210510,0.02457258,88075.0,88062.0,0.0113701]
[1767093210807,0.02457258,88074.0,88062.0,0.0113701]
[1767093210999,0.0113682,88078.0,88062.0,0.0113701]
[1767093211199,0.02457189,88077.0,88062.0,0.0113701]
[1767093211399,0.02457189,88076.0,88062.0,0.0113701]
[1767093211602,0.02457189,88075.0,88062.0,0.0113701]
[1767093211810,0.0113682,88078.0,88062.0,0.0113701]
[1767093211811,0.02457189,88074.0,88062.0,0.0113701]
[1767093212011,0.0113682,88078.0,88062.0,0.0113701]
[1767093212208,0.02457135,88077.0,88062.0,0.0113701]
[1767093212407,0.02457135,88076.0,88062.0,0.0113701]
[1767093212608,0.02457135,88075.0,88064.0,0.0113698]
[1767093212806,0.02457135,88074.0,88061.0,0.01154046]
[1767093213007,0.0113682,88078.0,88061.0,0.01154046]
[1767093213214,0.02457094,88077.0,88061.0,0.01154046]
[1767093213406,0.02457094,88076.0,88061.0,0.01154046]
[1767093213607,0.02457094,88075.0,88061.0,0.01154046]
[1767093213908,0.02457094,88074.0,88061.0,0.01154046]
[1767093214108,0.0113682,88078.0,88061.0,0.01154046]
[1767093214308,0.02457056,88077.0,88061.0,0.01154046]
[1767093214509,0.03593896,88076.0,88061.0,0.01154046]
[1767093214710,0.02457056,88075.0,88061.0,0.01154046]
[1767093214911,0.03593916,88074.0,88061.0,0.01154046]
[1767093215208,0.0113686,88074.0,88061.0,0.01154046]
[1767093215513,0.0113683,88077.0,88061.0,0.01154046]
[1767093215708,0.02456992,88076.0,88061.0,0.01154046]
[1767093215912,0.03593842,88075.0,88061.0,0.01154046]
[1767093216112,0.02456992,88074.0,88061.0,0.01154046]
[1767093216312,0.0113685,88075.0,88061.0,0.01154046]
[1767093216513,0.02456965,88074.0,88061.0,0.01154046]
[1767093216716,0.0113685,88075.0,88061.0,0.01154046]
[1767093217013,0.02456965,88074.0,88061.0,0.01154046]
[1767093217223,0.0113685,88075.0,88061.0,0.01154046]
[1767093217412,0.02456941,88074.0,88061.0,0.01154046]
[1767093217613,0.0113685,88075.0,88061.0,0.01154046]
[1767093217912,0.02456942,88074.0,88061.0,0.01154046]
[1767093218113,0.0113685,88075.0,88061.0,0.01154046]